bitfinex/quotes_SOLUSD_20240714
["timestamp","ask_amount","ask_price","bid_price","bid_amount"]
[1720936878296,0.2,146.29,146.21,16.5352]
[1720936878493,11.08,146.24,146.2,11.08]
[1720936878796,11.08,146.23,146.18,21.05445805]
[1720936878995,11.08,146.23,146.18,11.08]
[1720936879213,11.08,146.23,146.17,16.5352]
[1720936879383,11.08,146.22,146.17,27.6152]
[1720936879891,11.08,146.2,146.15,19.78876276]
[1720936880096,11.08,146.19,146.15,8.70876276]
[1720936880407,11.08,146.2,146.15,19.78876276]
[1720936880631,1.71001545,146.22,146.15,8.70876276]
[1720936880926,23.77992502,146.24,146.15,8.70876276]
[1720936881129,1.70977981,146.24,146.15,8.70876276]
[1720936881426,18.34983686,146.25,146.16,45.0]
[1720936882006,18.34983686,146.25,146.17,20.0]
[1720936882205,16.6402,146.25,146.18,45.0]
[1720936882435,16.6402,146.25,146.19,20.0]
[1720936882603,16.6402,146.25,146.2,45.0]
[1720936884416,1.70960322,146.24,146.19,20.0]
[1720936884614,1.7099078,146.23,146.15,20.0]
[1720936884803,1.7099078,146.23,146.16,45.0]
[1720936885002,1.7099078,146.23,146.17,20.0]
[1720936885637,1.70992283,146.24,146.17,20.0]
[1720936885832,1.70992232,146.23,146.17,20.0]
[1720936886218,1.70992232,146.23,146.16,45.0]
[1720936886418,1.70992232,146.23,146.15,45.0]
[1720936886624,1.70992232,146.23,146.14,7.14324698]
[1720936887007,6.6338,146.22,146.14,7.14324698]
[1720936887232,1.71034675,146.21,146.14,7.14324698]
[1720936887452,1.71043674,146.2,146.14,7.14324698]
[1720936887748,15.4953,146.19,146.11,0.78779054]
[1720936887919,15.4953,146.19,146.08,6.1789]
[1720936887920,23.78082343,146.18,146.08,6.1789]
[1720936888111,1.71081994,146.17,146.08,6.1789]
[1720936888312,1.71081994,146.17,146.05,54.94729859]
[1720936888616,6.6338,146.16,146.05,34.36729859]
[1720936888824,1.71087956,146.15,146.05,34.36729859]
[1720936889025,1.7109371,146.14,146.05,34.36729859]
[1720936889524,1.7109371,146.14,146.06,0.85248588]
[1720936889925,1.54271882,146.13,146.06,0.85248588]
[1720936890130,1.54271882,146.13,146.06,20.85248588]
[1720936890532,1.54271882,146.13,146.06,0.85248588]
[1720936890857,1.54248193,146.15,146.06,22.07]
[1720936891015,22.1291,146.16,146.07,0.85324491]
[1720936891213,1.7106046,146.15,146.08,0.85163321]
[1720936891416,1.71083359,146.14,146.08,0.85163321]
[1720936891629,1.71083359,146.14,146.04,0.85235196]
[1720936891830,23.84008186,146.16,146.05,0.8522938]
[1720936892223,23.84008186,146.16,146.04,85.58]
[1720936892421,23.84008186,146.16,146.04,107.65]
[1720936892633,23.84008186,146.16,146.04,45.0]
[1720936893132,23.84008186,146.16,146.03,45.0]
[1720936893741,22.07,146.14,146.02,20.58]
[1720936893963,1.71121753,146.13,146.01,29.45825249]
[1720936894958,1.71121578,146.12,146.02,85.58]
[1720936895151,22.07,146.13,146.02,65.0]
[1720936895322,1.71133773,146.12,146.02,65.0]
[1720936896152,8.55493773,146.12,146.02,20.0]
[1720936896363,46.71133773,146.12,146.02,20.0]
[1720936896570,46.71133773,146.12,145.99,260.0]
[1720936897057,46.71133773,146.12,145.99,20.58]
[1720936897954,1.71133773,146.12,145.99,20.58]
[1720936898473,1.71133773,146.12,146.0,20.0]
[1720936898686,1.71133773,146.12,146.0,86.43360082]
[1720936898988,1.71133773,146.12,146.0,65.85360082]
[1720936899165,46.71133773,146.12,146.0,65.0]
[1720936901858,1.71133773,146.12,146.0,85.58]
[1720936902058,1.71133773,146.12,146.01,0.85345838]
[1720936902257,1.71133773,146.12,146.02,0.85339993]
[1720936902960,16.504,146.11,146.02,0.85339993]
[1720936903162,1.71137083,146.1,146.02,0.85339993]
[1720936903380,16.504,146.11,146.03,43.50325995]
[1720936903586,16.504,146.11,146.04,65.0]
[1720936903894,16.504,146.11,146.05,0.85280926]
[1720936905390,18.21537083,146.15,146.05,0.85280926]
[1720936905564,1.7107545,146.14,146.05,0.85280926]
[1720936905765,18.21486236,146.15,146.05,0.85280926]
[1720936906064,1.71085976,146.14,146.05,0.85280926]
[1720936906458,16.504,146.15,146.05,0.85280926]
[1720936906459,16.504,146.15,146.05,21.43280926]
[1720936906662,16.504,146.15,146.06,85.58]
[1720936906889,16.504,146.15,146.07,0.85173929]
[1720936907088,16.504,146.15,146.08,0.85173591]
[1720936907262,6.6338,146.16,146.08,0.85173591]
[1720936907462,16.504,146.19,146.08,0.85173591]
[1720936907874,1.71029837,146.18,146.08,0.85173591]
[1720936908081,18.21429837,146.19,146.08,0.85173591]
[1720936910198,18.21429837,146.19,146.07,85.58]
[1720936913289,18.21429837,146.19,146.09,22.07]
[1720936913491,18.21429837,146.19,146.1,65.0]
[1720936914893,18.21429837,146.19,146.11,0.40636908]
[1720936914894,16.504,146.19,146.11,0.40636908]
[1720936915385,1.71026683,146.22,146.12,36.0272]
[1720936915584,1.71008442,146.22,146.13,85.58]
[1720936915788,18.2139178,146.23,146.14,0.84998489]
[1720936915993,18.2139178,146.23,146.15,0.84997433]
[1720936919894,18.2139178,146.23,146.13,65.0]
[1720936920393,25.0525178,146.23,146.13,65.0]
[1720936920691,18.2139178,146.23,146.14,0.8505371]
[1720936920902,18.2139178,146.23,146.15,0.8504789]
[1720936921107,45.0,146.22,146.08,15.4472]
[1720936921271,1.71058297,146.21,146.08,15.4472]
[1720936921465,1.71058297,146.2,146.08,15.4472]
[1720936921813,1.54334202,146.22,146.1,22.07]
[1720936922088,1.54334202,146.22,146.11,21.43036316]
[1720936922296,1.54334202,146.22,146.11,0.85036316]
[1720936922484,1.54334202,146.22,146.11,20.85036316]
[1720936922791,1.54334202,146.22,146.11,20.0]
[1720936923181,1.54334202,146.22,146.12,20.58]
[1720936923485,1.54334202,146.22,146.13,20.0]
[1720936923799,1.54334202,146.22,146.14,0.85017005]
[1720936924300,1.54334202,146.22,146.13,80.4472]
[1720936924691,1.54334202,146.22,146.14,0.85023993]
[1720936924899,1.54334202,146.22,146.15,0.85048314]
[1720936925470,1.54334202,146.22,146.13,80.4472]
[1720936925687,1.54334202,146.22,146.14,0.81774769]
[1720936926705,1.54334202,146.22,146.15,0.85029441]
[1720936927710,1.54334202,146.22,146.14,0.85029441]
[1720936927891,1.54334202,146.22,146.15,0.85023623]
[1720936928904,1.54334202,146.22,146.14,0.85023623]
[1720936929213,1.54334202,146.22,146.15,0.85017805]
[1720936929593,8.38244202,146.22,146.13,35.4472]
[1720936929795,8.38244202,146.22,146.14,0.85099118]
[1720936930313,8.38254202,146.22,146.14,0.85099118]
[1720936930518,30.45254202,146.22,146.14,0.85099118]
[1720936931194,30.45254202,146.22,146.11,0.85099118]
[1720936931532,30.45254202,146.22,146.11,45.85099118]
[1720936931816,23.61334202,146.22,146.12,20.0]
[1720936932020,23.61334202,146.22,146.13,45.85099053]
[1720936932188,23.61334202,146.22,146.14,20.0]
[1720936932390,1.54334202,146.22,146.15,0.85087407]
[1720936932629,1.54334202,146.22,146.15,45.85087407]
[1720936932987,1.54334202,146.22,146.11,40.58]
[1720936932988,8.38244202,146.22,146.11,20.0]
[1720936933197,1.54334202,146.22,146.12,45.8509897]
[1720936933517,53.38244202,146.22,146.13,20.0]
[1720936933718,6.8394,146.21,146.14,0.85112975]
[1720936933913,1.71041037,146.2,146.14,0.85112975]
[1720936934120,1.71041037,146.2,146.1,20.0]
[1720936934911,1.71041037,146.2,146.11,45.0]
[1720936935424,23.78041037,146.2,146.09,21.4195]
[1720936935630,23.78041037,146.2,146.1,45.85179267]
[1720936935806,23.78041037,146.2,146.11,0.85163206]
[1720936937312,23.78041037,146.2,146.1,20.0]
[1720936937912,23.78041037,146.2,146.11,0.85172418]
[1720936938710,1.7102364,146.21,146.11,45.0]
[1720936938907,1.71029136,146.2,146.12,20.57725215]
[1720936939237,1.71028904,146.22,146.13,45.0]
[1720936939413,1.71028904,146.22,146.14,20.0]
[1720936939614,1.71028904,146.22,146.15,0.85067882]
[1720936941741,1.71028904,146.22,146.15,45.85067882]
[1720936942034,1.71028904,146.22,146.16,20.0]
[1720936942240,1.71028904,146.22,146.17,0.85000579]
[1720936942433,1.71028904,146.22,146.18,0.8500109]
[1720936943334,1.71028904,146.22,146.17,0.85005986]
[1720936943536,1.71028904,146.22,146.18,0.85005986]
[1720936944645,6.0422,146.27,146.19,0.85006029]
[1720936944646,1.70994921,146.25,146.19,0.85006029]
[1720936945021,1.70994921,146.25,146.19,45.85006029]
[1720936945222,1.70956384,146.26,146.2,20.0]
[1720936947643,1.70956384,146.26,146.21,0.84914156]
[1720936951248,7.75176421,146.27,146.21,0.84914156]
[1720936951426,7.75176421,146.27,146.21,45.84914156]
[1720936952341,1.7094015,146.26,146.21,0.84874578]
[1720936952540,1.7094015,146.26,146.17,20.78339839]
[1720936952848,1.7094015,146.26,146.17,20.0]
[1720936953536,8.5465015,146.26,146.17,20.0]
[1720936954255,6.8377,146.25,146.17,20.0]
[1720936954437,1.71006886,146.24,146.15,20.0]
[1720936954638,1.71001299,146.23,146.15,20.0]
[1720936955350,1.71003167,146.25,146.16,16.3674]
[1720936955673,1.70967119,146.27,146.17,65.0]
[1720936955965,1.70949704,146.26,146.18,0.84897507]
[1720936956938,16.2809,146.28,146.18,0.84897507]
[1720936956939,1.70949651,146.27,146.18,0.84897507]
[1720936957156,1.70946748,146.26,146.18,0.84897507]
[1720936957354,1.70946749,146.27,146.18,0.84897507]
[1720936958023,1.70944591,146.26,146.18,0.84897507]
[1720936958221,0.2,146.29,146.2,20.58]
[1720936958425,0.2,146.29,146.21,86.42770733]
[1720936960554,0.2,146.29,146.23,20.58]
[1720936960730,0.2,146.29,146.24,65.84679886]
[1720936960933,0.2,146.29,146.24,86.42679886]
[1720936961126,0.2,146.29,146.24,65.84679886]
[1720936962258,0.2,146.29,146.24,86.42679886]
[1720936962832,0.2,146.29,146.24,65.84679886]
[1720936963627,0.2,146.29,146.24,86.42679886]
[1720936964657,0.2,146.29,146.24,65.84679886]
[1720936965222,0.2,146.29,146.24,86.42679886]
[1720936966560,0.2,146.29,146.24,65.84679886]
[1720936967959,0.2,146.29,146.24,20.84679886]
[1720936968133,0.2,146.29,146.24,0.84679886]
[1720936968646,0.2,146.29,146.23,20.0]
[1720936969059,0.2,146.29,146.24,45.0]
[1720936969546,0.2,146.29,146.25,20.84777288]
[1720936970067,0.2,146.29,146.23,20.0]
[1720936972178,0.2,146.29,146.22,20.0]
[1720936972568,11.02,146.28,146.23,11.02]
[1720936972889,0.2,146.29,146.2,0.84843809]
[1720936972890,12.7292733,146.27,146.2,0.84843809]
[1720936973075,11.02,146.27,146.22,11.02]
[1720936973282,1.70939407,146.26,146.22,11.02]
[1720936973666,1.70939407,146.26,146.23,0.84872567]
[1720936973979,11.02,146.27,146.23,20.84872567]
[1720936974294,1.70939159,146.26,146.23,20.84872567]
[1720936975987,11.02,146.27,146.24,0.84872122]
[1720936976179,11.02,146.28,146.24,0.84872122]
[1720936976678,11.02,146.28,146.24,20.84872122]
[1720936979081,11.02,146.27,146.24,20.84872122]
[1720936979284,11.02,146.27,146.23,20.84843841]
[1720936979499,11.02,146.27,146.24,0.84843811]
[1720936980393,11.02,146.27,146.23,20.0]
[1720936980394,0.2,146.29,146.26,11.02]
[1720936980603,0.2,146.29,146.25,0.84843782]
[1720936980604,11.22,146.29,146.27,20.0]
[1720936980969,11.22,146.29,146.25,20.8478265]
[1720936981173,11.02,146.28,146.25,0.8478265]
[1720936982197,0.2,146.29,146.25,45.8478265]
[1720936982409,0.2,146.29,146.26,20.0]
[1720936982871,11.22,146.29,146.26,20.0]
[1720936983077,11.22,146.29,146.25,0.8478265]
[1720936983078,0.2,146.29,146.25,20.8478265]
[1720936983294,11.22,146.29,146.25,20.8478265]
[1720936983796,11.22,146.29,146.25,0.8478265]
[1720936984099,11.22,146.29,146.25,20.8478265]
[1720936985280,11.22,146.29,146.25,0.8478265]
[1720936985483,0.2,146.29,146.25,65.0]
[1720936985693,0.2,146.29,146.26,11.02]
[1720936985883,0.2,146.29,146.27,20.0]
[1720936986598,0.2,146.29,146.26,20.0]
[1720936987184,0.2,146.29,146.25,11.02]
[1720936987398,0.2,146.29,146.26,20.84759123]
[1720936987596,0.2,146.29,146.27,0.84748559]
[1720936987990,0.2,146.29,146.26,20.0]
[1720936988192,0.2,146.29,146.25,11.02]
[1720936988498,0.2,146.29,146.26,20.0]
[1720936989110,11.02,146.27,146.19,22.8195]
[1720936989283,11.02,146.26,146.21,11.02]
[1720936989920,11.02,146.26,146.22,0.84885442]
[1720936990607,11.02,146.27,146.22,11.86885442]
[1720936990905,17.42584677,146.28,146.23,20.0]
[1720936991111,11.02,146.27,146.24,0.84842182]
[1720936992499,6.5799,146.29,146.24,0.84842182]
[1720936992700,11.02,146.28,146.24,0.84842182]
[1720936992896,6.5799,146.29,146.24,0.84842182]
[1720936993212,0.2,146.29,146.24,0.84842182]
[1720936993377,0.2,146.29,146.25,11.02]
[1720936993581,0.2,146.29,146.26,20.84764145]
[1720936993805,11.22,146.29,146.27,0.84758349]
[1720936994514,11.22,146.29,146.25,20.0]
[1720936994885,11.22,146.29,146.24,11.02]
[1720936995088,11.22,146.29,146.25,65.84782393]
[1720936996398,11.22,146.29,146.26,0.84758754]
[1720936996700,11.02,146.28,146.25,20.0]
[1720936996913,11.02,146.28,146.26,0.84789658]
[1720936997794,11.02,146.28,146.25,0.84789527]
[1720936998285,11.02,146.26,146.24,20.84789674]
[1720936998513,11.02,146.26,146.25,20.0]
[1720936999312,11.02,146.26,146.22,20.84784963]
[1720936999707,11.02,146.25,146.22,0.84784963]
[1720937000022,28.8789,146.23,146.11,15.8701]
[1720937000230,11.02,146.17,146.11,15.8701]
[1720937000389,11.02,146.15,146.11,7.15917193]
[1720937000814,1.71052205,146.2,146.11,7.15917193]
[1720937001106,11.02,146.15,146.11,7.15917193]
[1720937001520,11.02,146.15,146.1,11.02]
[1720937001827,1.71052205,146.2,146.11,0.85178525]
[1720937001992,1.71048658,146.22,146.11,11.87178525]
[1720937002320,11.02,146.16,146.11,11.87178525]
[1720937002697,23.79043099,146.21,146.12,0.85135941]
[1720937003029,1.71048342,146.2,146.08,0.85134238]
[1720937004033,1.71048342,146.2,146.08,86.43134238]
[1720937005898,1.71048342,146.2,146.08,65.85134238]
[1720937006103,46.71048342,146.2,146.08,65.85134238]
[1720937006909,15.7183,146.19,146.08,65.85134238]
[1720937007227,1.71064875,146.18,146.08,65.85134238]
[1720937007523,7.95484867,146.17,146.09,0.85173898]
[1720937007701,7.95484867,146.17,146.07,7.16218821]
[1720937008309,30.0,146.14,146.07,7.16218821]
[1720937008513,30.0,146.14,146.06,6.3064]
[1720937008514,1.71096213,146.13,146.06,6.3064]
[1720937008912,1.71090205,146.16,146.06,6.3064]
[1720937009403,1.71090205,146.16,146.07,20.8526402]
[1720937009616,46.71090205,146.16,146.08,0.85262044]
[1720937010227,6.8428,146.14,146.03,30.20264411]
[1720937010437,15.7183,146.12,146.03,22.0495]
[1720937010613,105.03581781,146.11,146.01,7.16095255]
[1720937010801,1.71160846,146.1,146.01,7.16095255]
[1720937011117,1.71160846,146.1,146.02,0.85338475]
[1720937011417,6.2442,146.11,146.03,0.85368155]
[1720937011632,7.95541232,146.11,146.03,0.85368155]
[1720937012300,6.2442,146.11,146.03,0.85368155]
[1720937012824,1.71121151,146.14,146.03,41.43368155]
[1720937013008,1.71121151,146.14,146.04,65.58]
[1720937013202,1.71090806,146.15,146.05,20.85236152]
[1720937013410,1.71090562,146.14,146.06,45.0]
[1720937013727,1.71090562,146.14,146.07,20.85224481]
[1720937013911,1.71090562,146.14,146.08,0.85218646]
[1720937014315,1.71098781,146.15,146.08,0.85218646]
[1720937014535,1.71098781,146.14,146.08,0.85218646]
[1720937015414,1.54282984,146.13,146.08,0.85218646]
[1720937015608,1.71099093,146.15,146.08,0.85218646]
[1720937015823,1.71099083,146.14,146.08,0.85218646]
[1720937016618,1.71099083,146.14,146.07,20.0]
[1720937016822,1.71099083,146.14,146.04,20.0]
[1720937017026,1.71099083,146.14,146.05,45.0]
[1720937017219,8.55369083,146.14,146.06,20.0]
[1720937017428,6.8432,146.13,146.06,20.0]
[1720937017638,1.71144644,146.12,146.06,20.0]
[1720937017823,1.71144644,146.12,146.01,20.0]
[1720937018022,23.79144644,146.12,146.0,45.07463094]
[1720937018228,23.79144644,146.12,146.0,65.65463094]
[1720937018616,30.63524644,146.12,146.0,45.07463094]
[1720937018822,1.71161077,146.11,146.0,37.9132]
[1720937019140,1.71157285,146.1,146.01,0.85393868]
[1720937019450,1.71157285,146.1,146.02,0.85388019]
[1720937020255,1.71160888,146.09,146.02,0.85388019]
[1720937020433,1.7114531,146.11,146.02,0.85388019]
[1720937020745,1.71128881,146.14,146.02,0.85388019]
[1720937021245,1.71128881,146.14,146.01,85.58]
[1720937021449,1.71128881,146.14,146.02,45.0]
[1720937021614,1.71128881,146.14,146.03,20.0]
[1720937021817,1.71128881,146.14,146.04,45.0]
[1720937022119,1.71128881,146.14,146.05,20.0]
[1720937022623,1.71128881,146.14,146.01,41.43359553]
[1720937022923,1.71128881,146.14,146.02,45.0]
[1720937023139,1.71128881,146.14,146.03,20.85336444]
[1720937023336,8.55408881,146.14,146.04,45.0]
[1720937023524,45.0,146.13,146.05,20.85324758]
[1720937023724,1.71140704,146.12,146.05,20.85324758]
[1720937023926,1.71140704,146.12,146.06,0.85318917]
[1720937024433,1.71140704,146.12,146.03,0.85341476]
[1720937024631,1.71140704,146.12,146.03,45.85341476]
[1720937024832,1.71140704,146.12,146.04,20.0]
[1720937025040,6.5491,146.11,146.05,0.85360659]
[1720937025241,40.09690022,146.1,145.99,13.36678574]
[1720937025444,85.09690022,146.1,145.99,7.15048574]
[1720937025822,6.8456,146.08,146.0,0.85476832]
[1720937026027,22.08,146.04,145.94,0.85516611]
[1720937026229,1.71255956,146.03,145.94,0.85516611]
[1720937026430,46.71255956,146.03,145.94,0.85516611]
[1720937027255,46.71255956,146.03,145.91,1.05632494]
[1720937027430,46.71255956,146.03,145.91,0.2]
[1720937027944,6.8484,146.02,145.91,0.2]
[1720937028254,75.64190872,146.01,145.91,0.2]
[1720937028458,6.8494,146.0,145.91,0.2]
[1720937028639,6.5491,145.98,145.91,0.2]
[1720937028954,1.71293758,145.97,145.91,0.2]
[1720937030043,22.8544,145.98,145.91,0.2]
[1720937030245,16.3053,145.98,145.92,0.85702386]
[1720937030426,1.71296846,146.0,145.93,0.85645894]
[1720937031060,1.71296846,146.0,145.92,20.0]
[1720937031276,1.71296846,146.0,145.91,0.2]
[1720937031562,46.71296846,146.0,145.91,0.2]
[1720937032253,46.71296846,146.0,145.91,20.2]
[1720937033239,46.71296846,146.0,145.91,0.2]
[1720937033739,53.56236846,146.0,145.91,0.2]
[1720937033935,6.8498,145.99,145.91,0.2]
[1720937034149,46.71324151,145.98,145.91,0.2]
[1720937035559,1.71324151,145.98,145.91,0.2]
[1720937036670,1.71299783,145.97,145.91,0.2]
[1720937036843,1.71299754,146.0,145.91,0.2]
[1720937037042,8.56239754,146.0,145.91,0.2]
[1720937037255,45.0,145.99,145.91,0.2]
[1720937037453,1.71305146,145.98,145.91,0.2]
[1720937040249,1.71297864,145.97,145.91,0.2]
[1720937040647,1.71286785,146.0,145.91,0.2]
[1720937041157,8.56216785,146.0,145.91,0.2]
[1720937041662,6.8499,145.99,145.91,0.2]
[1720937041853,1.71315765,145.98,145.91,0.2]
[1720937042168,16.3053,145.97,145.91,0.2]
[1720937042344,1.71300907,145.96,145.91,0.2]
[1720937042547,1.71306894,145.95,145.91,0.2]
[1720937043648,1.71326986,145.96,145.91,0.2]
[1720937043966,1.71312602,145.95,145.91,0.2]
[1720937044369,0.07472676,145.93,145.91,0.2]
[1720937044548,1.78819871,145.93,145.91,0.2]
[1720937047972,0.07472676,145.93,145.91,0.2]
[1720937050385,0.07472676,145.93,145.91,21.05732562]
[1720937050558,0.07472676,145.93,145.91,1.05732562]
[1720937051665,0.07472676,145.93,145.91,0.2]
[1720937054978,0.07472676,145.93,145.92,0.85764464]
[1720937055689,0.07472676,145.93,145.92,45.85764464]
[1720937055891,0.07472676,145.93,145.92,65.85764464]
[1720937059971,1.71236573,146.01,145.92,65.85764464]
[1720937060184,1.71236573,146.01,145.93,20.8560315]
[1720937060673,1.71236573,146.01,145.93,0.8560315]
[1720937062380,15.4929,146.0,145.93,0.8560315]
[1720937062573,1.71293782,145.99,145.93,0.8560315]
[1720937062897,1.71293491,145.98,145.91,1.05603152]
[1720937063095,1.71286727,145.99,145.91,1.05603152]
[1720937063700,1.71286727,145.99,145.91,21.05603152]
[1720937064001,15.4929,146.0,145.91,1.05603152]
[1720937064002,1.71265888,145.98,145.91,1.05603152]
[1720937065398,1.71265888,145.98,145.91,0.2]
[1720937067976,37.5729,146.0,145.91,20.2]
[1720937067977,1.54085918,145.97,145.91,20.2]
[1720937068174,1.71288864,145.99,145.92,0.85711491]
[1720937068372,1.71293697,145.98,145.92,0.85711491]
[1720937069092,1.71293697,145.98,145.91,21.05711529]
[1720937070587,1.71293697,145.98,145.91,0.2]
[1720937072990,6.1223,145.97,145.91,0.2]
[1720937073197,1.71316121,145.96,145.91,0.2]
[1720937073403,1.71316129,145.95,145.91,0.2]
[1720937073993,0.07472676,145.93,145.91,0.2]
[1720937075514,0.07472676,145.93,145.91,21.05704654]
[1720937076102,0.07472676,145.93,145.92,20.0]
[1720937076313,0.07472676,145.93,145.91,0.2]
[1720937077215,0.07472676,145.93,145.91,1.05718591]
[1720937077994,0.07472676,145.93,145.91,0.2]
[1720937078198,0.07472676,145.93,145.92,0.85655835]
[1720937083519,0.07472676,145.93,145.92,45.85655835]
[1720937083822,0.07472676,145.93,145.92,65.85655835]
[1720937084398,0.07472676,145.93,145.92,20.85655835]
[1720937084603,0.07472676,145.93,145.92,65.85655835]
[1720937085207,0.07472676,145.93,145.92,20.85655835]
[1720937085399,0.07472676,145.93,145.92,0.85655835]
[1720937088729,0.07472676,145.93,145.91,0.2]
[1720937090533,1.78830935,145.93,145.91,0.2]
[1720937098655,0.07472676,145.93,145.91,0.2]
[1720937103620,0.07472676,145.93,145.91,66.05684647]
[1720937105764,0.07472676,145.93,145.91,86.63684647]
[1720937105967,0.07472676,145.93,145.92,22.08]
[1720937106137,0.07472676,145.93,145.92,87.08]
[1720937106337,0.07472676,145.93,145.92,108.51597844]
[1720937106746,0.07472676,145.93,145.92,107.66]
[1720937106944,7.86014609,146.03,145.92,107.66]
[1720937107167,7.86014609,146.03,145.93,65.0]
[1720937107332,7.86014609,146.03,145.93,20.0]
[1720937107536,6.8488,146.01,145.91,0.2]
[1720937107731,28.2279,146.03,145.91,0.2]
[1720937108459,45.0,146.02,145.91,0.2]
[1720937108658,35.076,146.03,145.91,0.2]
[1720937108854,35.076,146.03,145.91,21.05651083]
[1720937108855,1.71276468,146.01,145.91,21.05651083]
[1720937110049,1.71276468,146.01,145.92,45.0]
[1720937110257,1.71276468,146.01,145.93,20.85688707]
[1720937112442,1.71251942,146.0,145.94,45.0]
[1720937112634,1.71252103,146.02,145.95,0.85623265]
[1720937112839,1.71252391,146.01,145.95,0.85623265]
[1720937113057,1.71252391,146.01,145.94,45.0]
[1720937113258,1.71252391,146.01,145.95,0.8562325]
[1720937113562,1.71252391,146.01,145.96,0.85590682]
[1720937113765,1.71239291,146.02,145.96,0.85590682]
[1720937113939,6.1479,146.03,145.96,0.85590682]
[1720937113940,1.71239339,146.01,145.96,0.85590682]
[1720937114844,1.71247623,146.02,145.96,0.85590682]
[1720937115042,1.71247589,146.01,145.95,20.0]
[1720937115359,1.71247589,146.01,145.96,0.85612306]
[1720937116051,1.71247466,146.02,145.96,0.85612306]
[1720937116258,1.71247488,146.01,145.96,0.85612306]
[1720937117259,1.71247262,146.02,145.96,0.85612306]
[1720937117568,1.71247325,146.01,145.96,0.85612306]
[1720937118443,1.71247436,146.02,145.96,0.85612306]
[1720937118643,1.71247491,146.01,145.96,0.85612306]
[1720937118960,1.71247491,146.01,145.95,20.85612228]
[1720937119157,1.71247491,146.01,145.96,0.85670405]
[1720937119464,1.71247491,146.01,145.92,0.85611501]
[1720937119668,1.71243815,146.02,145.93,0.85603374]
[1720937119983,1.71243856,146.03,145.93,22.93603374]
[1720937120153,1.71243856,146.03,145.94,20.0]
[1720937120361,1.71215317,146.04,145.95,52.20504978]
[1720937120553,1.71201193,146.06,145.96,58.11091082]
[1720937120751,1.71201193,146.06,145.97,45.0]
[1720937120982,1.71201193,146.06,145.98,20.85487377]
[1720937121287,1.71201193,146.06,145.99,45.85487538]
[1720937121466,6.8465,146.06,145.99,45.85487538]
[1720937121788,1.71195849,146.05,145.99,45.85487538]
[1720937122305,1.71195863,146.07,145.99,45.85487538]
[1720937122799,1.71195863,146.07,146.0,0.85481682]
[1720937123093,1.71167134,146.07,146.0,20.85481682]
[1720937123484,1.54208473,146.1,146.0,20.85481682]
[1720937123670,1.54208473,146.1,146.01,51.4585]
[1720937123866,1.54208473,146.1,146.02,20.85415782]
[1720937124684,11.05,146.07,146.02,31.90415782]
[1720937125573,11.05,146.08,146.03,11.05]
[1720937125808,1.54208473,146.1,146.04,0.85414474]
[1720937125972,11.05,146.08,146.04,0.85414474]
[1720937126298,1.71165401,146.07,146.04,0.85414474]
[1720937126995,1.71165381,146.1,146.03,0.85415131]
[1720937128982,1.71165381,146.1,146.03,45.85415131]
[1720937129402,1.71165381,146.1,146.03,45.0]
[1720937131199,1.71165381,146.1,146.04,0.85370606]
[1720937131399,1.54235239,146.09,146.05,0.85369924]
[1720937131581,1.71146544,146.11,146.05,0.85369924]
[1720937131780,1.71146562,146.1,146.05,0.85369924]
[1720937132779,1.71146717,146.09,146.05,0.85369924]
[1720937132978,1.71146682,146.11,146.05,0.85369924]
[1720937133199,1.71146717,146.1,146.03,45.0]
[1720937133502,1.71146717,146.1,146.04,0.85369921]
[1720937134185,1.71146737,146.09,146.04,0.85369921]
[1720937134386,1.71146737,146.09,146.02,35.475]
[1720937134594,1.71146737,146.09,146.02,36.32914498]
[1720937135206,1.71146737,146.09,146.02,35.475]
[1720937135577,1.71146737,146.09,146.03,0.8543699]
[1720937135780,8.55666737,146.09,146.02,35.475]
[1720937135994,1.711832,146.08,146.02,35.475]
[1720937136316,1.71182808,146.07,146.02,35.475]
[1720937136690,1.71182808,146.07,145.99,15.475]
[1720937137082,1.71182808,146.07,146.0,0.85518854]
[1720937138900,1.71182808,146.07,146.0,20.85518854]